bitfinex-derivatives/quotes_BTCF0:USTF0_20241130
["timestamp","ask_amount","ask_price","bid_price","bid_amount"]
[1732983305190,0.051675,96714.0,96713.0,0.084276]
[1732983305393,0.536275,96714.0,96713.0,0.084276]
[1732983306093,0.536275,96714.0,96713.0,0.0326]
[1732983306590,0.69037871,96714.0,96713.0,0.0326]
[1732983306992,0.69137871,96714.0,96713.0,0.0326]
[1732983307183,0.69137871,96714.0,96700.0,0.1]
[1732983307184,0.64070371,96714.0,96700.0,0.1]
[1732983307385,0.412482,96701.0,96700.0,0.1]
[1732983307589,0.536282,96701.0,96700.0,0.1]
[1732983307789,0.69191065,96701.0,96700.0,0.1]
[1732983308792,0.69291065,96701.0,96700.0,0.1]
[1732983310194,0.69391065,96701.0,96700.0,0.1]
[1732983313690,0.81338059,96701.0,96700.0,0.1]
[1732983317905,0.83407248,96701.0,96700.0,0.1]
[1732983320804,1.19487248,96701.0,96700.0,0.1]
[1732983327723,1.29828456,96701.0,96700.0,0.1]
[1732983328218,1.29828456,96701.0,96681.0,0.0318]
[1732983328219,1.59828456,96701.0,96681.0,0.0318]
[1732983328420,1.59828456,96701.0,96663.0,0.3608]
[1732983328421,0.051703,96661.0,96657.0,0.18592593]
[1732983328720,0.33101874,96660.0,96658.0,0.0327]
[1732983328920,0.48464,96659.0,96658.0,0.0327]
[1732983329312,0.6397713,96659.0,96658.0,0.0327]
[1732983329517,0.051709,96651.0,96645.0,0.01247241]
[1732983329813,0.051709,96651.0,96648.0,0.0323]
[1732983329814,0.2789713,96650.0,96648.0,0.0323]
[1732983330021,0.2789713,96650.0,96648.0,0.08401]
[1732983331020,0.1551313,96650.0,96648.0,0.08401]
[1732983331221,0.12388,96649.0,96648.0,0.08401]
[1732983331817,0.12576,96650.0,96649.0,0.05171]
[1732983332123,0.2807975,96650.0,96649.0,0.05171]
[1732983332331,0.2817975,96650.0,96649.0,0.05171]
[1732983332524,0.2807975,96650.0,96649.0,0.05171]
[1732983332731,0.1560375,96650.0,96649.0,0.05171]
[1732983333524,0.1570375,96650.0,96649.0,0.05171]
[1732983333925,8.584e-05,96659.0,96649.0,0.05171]
[1732983334126,8.584e-05,96659.0,96658.0,0.051705]
[1732983334528,0.15591243,96659.0,96658.0,0.051705]
[1732983335131,0.15691243,96659.0,96658.0,0.051705]
[1732983335333,0.15791243,96659.0,96658.0,0.051705]
[1732983336026,0.15691243,96659.0,96658.0,0.051705]
[1732983336231,0.15791243,96659.0,96658.0,0.051705]
[1732983336922,0.20961643,96659.0,96658.0,0.051705]
[1732983337133,0.20961643,96659.0,96658.0,0.23721517]
[1732983337531,0.20961643,96659.0,96658.0,0.051705]
[1732983337932,0.33437643,96659.0,96658.0,0.051705]
[1732983338134,0.051706,96656.0,96655.0,0.18551017]
[1732983338338,0.28267243,96659.0,96654.0,0.18556008]
[1732983338529,0.051708,96653.0,96652.0,0.18556008]
[1732983339134,0.12684584,96659.0,96647.0,0.24790124]
[1732983339135,0.00208584,96659.0,96647.0,0.24790124]
[1732983339436,0.15525598,96657.0,96656.0,0.237265]
[1732983339829,0.00108584,96659.0,96658.0,0.051705]
[1732983340026,8.584e-05,96659.0,96658.0,0.051705]
[1732983340235,0.15514226,96659.0,96658.0,0.051705]
[1732983340933,0.15514226,96659.0,96658.0,0.23726341]
[1732983341231,0.27990226,96659.0,96658.0,0.23726341]
[1732983341442,0.051705,96658.0,96656.0,0.001]
[1732983341937,0.15600679,96657.0,96656.0,0.001]
[1732983342637,0.051708,96652.0,96648.0,0.08401]
[1732983342935,0.05171,96649.0,96648.0,0.08401]
[1732983343330,0.05171,96649.0,96648.0,0.26963478]
[1732983343537,0.12476,96651.0,96650.0,0.051709]
[1732983343838,0.15592747,96651.0,96650.0,0.051709]
[1732983344940,0.28068747,96651.0,96650.0,0.051709]
[1732983345331,0.28068747,96651.0,96650.0,0.23732015]
[1732983345531,0.28068747,96651.0,96650.0,0.051709]
[1732983346038,0.28168747,96651.0,96650.0,0.051709]
[1732983346834,0.28268747,96651.0,96650.0,0.051709]
[1732983347234,0.28268747,96651.0,96649.0,0.0332]
[1732983347235,0.051709,96650.0,96649.0,0.0332]
[1732983347441,0.051709,96650.0,96648.0,0.0323]
[1732983347740,0.20631113,96650.0,96648.0,0.0323]
[1732983347936,0.20631113,96650.0,96648.0,0.21791115]
[1732983348944,0.20731113,96650.0,96648.0,0.21791115]
[1732983349539,0.20731113,96650.0,96648.0,0.0323]
[1732983349729,0.20731113,96650.0,96648.0,0.08401]
[1732983349935,0.20731113,96650.0,96648.0,0.26962115]
[1732983350132,0.20831113,96650.0,96648.0,0.08401]
[1732983350331,0.20831113,96650.0,96648.0,0.0323]
[1732983351039,0.20831113,96650.0,96643.0,0.18562826]
[1732983351040,0.15660213,96650.0,96643.0,0.18562826]
[1732983351235,0.051714,96642.0,96640.0,0.051714]
[1732983351443,0.176514,96642.0,96640.0,0.051714]
[1732983352345,0.537314,96642.0,96640.0,0.051714]
[1732983353441,0.538314,96642.0,96640.0,0.051714]
[1732983353850,0.539314,96642.0,96640.0,0.051714]
[1732983354940,0.1248,96641.0,96640.0,0.051714]
[1732983355848,0.051716,96638.0,96636.0,0.051717]
[1732983356034,0.033,96640.0,96636.0,0.18577848]
[1732983356241,0.1258,96641.0,96639.0,0.051715]
[1732983357339,0.001,96640.0,96639.0,0.051715]
[1732983359445,0.1258,96641.0,96639.0,0.051715]
[1732983359446,0.1268,96641.0,96639.0,0.051715]
[1732983360045,0.1268,96641.0,96640.0,0.18593014]
[1732983360046,0.1248,96641.0,96640.0,0.18593014]
[1732983360746,0.1248,96641.0,96640.0,0.21883014]
[1732983360951,0.3608,96642.0,96641.0,0.051714]
[1732983361250,0.64125007,96642.0,96641.0,0.051714]
[1732983361846,0.51645007,96642.0,96641.0,0.051714]
[1732983363144,0.15565007,96642.0,96641.0,0.051714]
[1732983363345,0.3608,96654.0,96641.0,0.051714]
[1732983363346,0.3608,96654.0,96653.0,0.051708]
[1732983363541,0.126,96656.0,96655.0,0.051707]
[1732983363944,0.15421876,96656.0,96655.0,0.051707]
[1732983364256,0.126,96656.0,96655.0,0.051707]
[1732983364447,0.15493171,96658.0,96655.0,0.051707]
[1732983364651,0.12608584,96659.0,96657.0,0.051706]
[1732983364842,0.12608584,96659.0,96658.0,0.0319]
[1732983365045,8.584e-05,96659.0,96658.0,0.0319]
[1732983365244,0.15581208,96659.0,96658.0,0.0319]
[1732983365853,0.28181208,96659.0,96658.0,0.0319]
[1732983367351,0.28281208,96659.0,96658.0,0.0319]
[1732983369259,0.28281208,96659.0,96657.0,0.051706]
[1732983370459,0.15681208,96659.0,96657.0,0.051706]
[1732983372956,0.15681208,96659.0,96648.0,0.0312]
[1732983372957,0.15681208,96659.0,96648.0,0.05171]
[1732983373161,0.051713,96644.0,96642.0,0.051713]
[1732983373353,0.126,96643.0,96642.0,0.051713]
[1732983374667,0.127,96643.0,96642.0,0.051713]
[1732983375957,0.051715,96639.0,96631.0,0.18589412]
[1732983376262,0.051716,96638.0,96637.0,0.051716]
[1732983378453,0.052716,96638.0,96637.0,0.051716]
[1732983378654,0.001,96638.0,96637.0,0.051716]
[1732983379965,0.002,96638.0,96637.0,0.051716]
[1732983380166,0.128,96638.0,96637.0,0.051716]
[1732983380553,0.128,96638.0,96627.0,0.37295758]
[1732983380757,0.051716,96637.0,96633.0,0.051718]
[1732983380965,0.051717,96636.0,96633.0,0.051718]
[1732983381163,0.051717,96636.0,96627.0,0.37295758]
[1732983381462,0.051717,96636.0,96634.0,0.051718]
[1732983382061,0.128,96638.0,96637.0,0.051716]
[1732983383061,0.127,96638.0,96637.0,0.051716]
[1732983383959,0.128,96638.0,96637.0,0.051716]
[1732983388773,0.051719,96632.0,96631.0,0.051719]
[1732983389270,0.051721,96628.0,96627.0,0.37295758]
[1732983389670,0.051721,96628.0,96627.0,0.01215758]
[1732983390076,0.051721,96628.0,96626.0,0.082322]
[1732983390470,0.051721,96628.0,96626.0,0.09484773]
[1732983390772,0.052721,96628.0,96626.0,0.09484773]
[1732983391972,0.052721,96628.0,96626.0,0.082322]
[1732983392364,0.053721,96628.0,96626.0,0.082322]
[1732983392570,0.001,96628.0,96626.0,0.082322]
[1732983392767,0.002,96628.0,96626.0,0.082322]
[1732983401879,0.002,96628.0,96627.0,0.051722]
[1732983407386,0.053721,96628.0,96627.0,0.051722]
[1732983414180,0.002,96628.0,96627.0,0.051722]
[1732983414581,0.002,96628.0,96627.0,0.23797072]
[1732983414982,0.002,96628.0,96627.0,0.051722]
[1732983415182,0.002,96628.0,96627.0,0.23797072]
[1732983415386,0.12968,96628.0,96627.0,0.23797072]
[1732983415778,0.12968,96628.0,96627.0,0.051722]
[1732983416380,0.12968,96628.0,96627.0,0.23797072]
[1732983416579,0.12968,96628.0,96627.0,0.051722]
[1732983417998,0.002,96628.0,96627.0,0.051722]
[1732983420902,0.002,96628.0,96627.0,0.29922634]
[1732983421400,0.002,96628.0,96627.0,0.051722]
[1732983422301,0.0323,96648.0,96626.0,0.60830434]
[1732983422302,0.0323,96648.0,96642.0,0.051714]
[1732983422504,0.48768,96643.0,96642.0,0.051714]
[1732983422700,0.48768,96643.0,96642.0,0.23795182]
[1732983422899,0.3608,96643.0,96642.0,0.23795182]
[1732983423204,0.3608,96643.0,96642.0,0.051714]
[1732983424004,0.3618,96643.0,96642.0,0.052714]
[1732983426405,0.001,96643.0,96642.0,0.052714]
[1732983438911,0.001,96643.0,96642.0,0.085714]
[1732983439713,0.001,96643.0,96642.0,0.052714]
[1732983443817,0.001,96643.0,96642.0,0.23895182]
[1732983444412,8.584e-05,96659.0,96654.0,0.051707]
[1732983444605,0.12692584,96659.0,96654.0,0.051707]
[1732983444807,0.15544645,96658.0,96654.0,0.051707]
[1732983445813,0.15544645,96658.0,96657.0,0.051706]
[1732983446214,0.00208584,96659.0,96657.0,0.051706]
[1732983446616,0.00208584,96659.0,96658.0,0.3608]
[1732983448110,8.584e-05,96659.0,96658.0,0.3608]
[1732983448311,0.00108584,96659.0,96658.0,0.3608]
[1732983449017,0.00308584,96659.0,96658.0,0.3608]
[1732983461121,0.00308584,96659.0,96657.0,0.01239933]
[1732983461320,0.051708,96653.0,96651.0,0.051709]
[1732983461725,0.28142678,96652.0,96651.0,0.051709]
[1732983461925,0.28142678,96652.0,96641.0,0.18592508]
[1732983462121,0.28142678,96652.0,96640.0,0.23974134]
[1732983462322,0.28142678,96652.0,96648.0,0.05171]
[1732983462323,0.69393478,96652.0,96648.0,0.05171]
[1732983462526,0.69393478,96652.0,96651.0,0.002]
[1732983463131,0.69393478,96652.0,96650.0,0.051709]
[1732983463333,0.0306,96651.0,96650.0,0.051709]
[1732983465329,0.0306,96651.0,96650.0,0.053709]
[1732983469724,0.53914801,96652.0,96650.0,0.053709]
[1732983469725,0.48744001,96652.0,96650.0,0.053709]
[1732983469927,0.48688,96652.0,96650.0,0.053709]
[1732983470132,0.15438154,96651.0,96650.0,0.053709]
[1732983471732,8.584e-05,96659.0,96650.0,0.053709]
[1732983471939,8.584e-05,96659.0,96658.0,0.051705]
[1732983472237,0.15617638,96659.0,96658.0,0.051705]
[1732983473139,8.584e-05,96659.0,96658.0,0.051705]
[1732983473333,0.00108584,96659.0,96658.0,0.051705]
[1732983474430,0.00308584,96659.0,96658.0,0.051705]
[1732983500955,0.00308584,96659.0,96658.0,0.23763008]
[1732983501355,0.00308584,96659.0,96658.0,0.051705]
[1732983504271,0.00308584,96659.0,96658.0,0.23796195]
[1732983504967,0.00308584,96659.0,96658.0,0.051705]
[1732983505856,0.00308584,96659.0,96658.0,0.23796195]
[1732983506662,0.00308584,96659.0,96658.0,0.051705]
[1732983511769,0.05478984,96659.0,96658.0,0.23796138]
[1732983511974,0.05478984,96659.0,96658.0,0.051705]
[1732983512169,0.05478984,96659.0,96658.0,0.23796138]
[1732983512475,0.05478984,96659.0,96658.0,0.051705]
[1732983512670,0.05478984,96659.0,96658.0,0.23796322]
[1732983512874,0.05478984,96659.0,96658.0,0.051705]
[1732983513572,0.05478984,96659.0,96652.0,0.18625822]
[1732983513573,0.00308584,96659.0,96652.0,0.18625822]
[1732983513765,0.3608,96658.0,96650.0,0.18625822]
[1732983513965,0.051711,96647.0,96646.0,0.051711]
[1732983514169,0.176791,96647.0,96646.0,0.051711]
[1732983516582,0.177791,96647.0,96646.0,0.053711]
[1732983521980,0.177791,96647.0,96646.0,0.002]
[1732983525870,0.33216388,96647.0,96646.0,0.002]
[1732983534982,0.15537288,96647.0,96646.0,0.002]
[1732983535190,0.28049288,96647.0,96646.0,0.002]
[1732983535685,0.28049288,96647.0,96646.0,0.0351]
[1732983536487,0.15537288,96647.0,96646.0,0.0351]
[1732983536807,0.001,96647.0,96646.0,0.0351]
[1732983536997,0.001,96647.0,96646.0,0.0659]
[1732983537288,0.12512,96655.0,96654.0,0.051707]
[1732983537682,0.28101504,96655.0,96654.0,0.051707]
[1732983538483,0.12512,96655.0,96654.0,0.051707]
[1732983538692,0.12512,96655.0,96654.0,0.052707]
[1732983539286,0.12612,96655.0,96654.0,0.052707]
[1732983539487,0.001,96655.0,96654.0,0.052707]
[1732983547097,0.001,96655.0,96654.0,0.23886758]
[1732983547295,0.001,96655.0,96654.0,0.052707]
[1732983547697,0.001,96655.0,96654.0,0.23886758]
[1732983548294,0.001,96655.0,96654.0,0.052707]
[1732983549405,0.001,96655.0,96654.0,0.085807]
[1732983550093,0.4348,96676.0,96658.0,0.051705]
[1732983550294,0.12504,96673.0,96658.0,0.051705]
[1732983551295,0.00108584,96659.0,96658.0,0.051705]
[1732983552103,0.00308584,96659.0,96658.0,0.051705]
[1732983555802,0.00308584,96659.0,96658.0,0.06380463]
[1732983558507,0.1586365,96659.0,96649.0,0.05171]
[1732983558703,0.0301,96658.0,96651.0,0.051708]
[1732983559015,0.051708,96653.0,96651.0,0.051708]
[1732983559901,0.3608,96654.0,96653.0,0.051708]
[1732983561708,0.12504,96655.0,96653.0,0.051708]
[1732983562509,0.3608,96657.0,96656.0,0.051706]
[1732983564905,0.3618,96657.0,96656.0,0.051706]
[1732983573515,0.413506,96657.0,96656.0,0.051706]
[1732983579320,0.052706,96657.0,96656.0,0.051706]
[1732983579827,0.001,96657.0,96656.0,0.051706]
[1732983583023,0.001,96657.0,96656.0,0.06394058]
[1732983587225,0.001,96657.0,96656.0,0.25010116]
[1732983587528,0.001,96657.0,96656.0,0.25010057]
[1732983587729,0.001,96657.0,96656.0,0.06394058]
[1732983589330,0.001,96657.0,96656.0,0.25010057]
[1732983589623,0.001,96657.0,96656.0,0.06394058]
[1732983590529,0.001,96657.0,96656.0,0.25010057]
[1732983591235,0.001,96657.0,96656.0,0.06394058]
[1732983592128,0.001,96657.0,96656.0,0.25010057]
[1732983592337,0.001,96657.0,96656.0,0.06394058]
[1732983599141,0.001,96657.0,96656.0,0.42474058]
[1732983603227,0.001,96657.0,96656.0,0.61090666]
[1732983603434,0.001,96657.0,96656.0,0.25010666]
[1732983603638,0.001,96657.0,96656.0,0.06394058]
[1732983622451,0.001,96657.0,96656.0,0.06394058]
[1732983634949,0.001,96657.0,96656.0,0.25010666]
[1732983635351,0.001,96657.0,96656.0,0.06394058]
[1732983637156,0.001,96657.0,96656.0,0.25010666]
[1732983639361,0.001,96657.0,96656.0,0.06394058]
[1732983640453,0.001,96657.0,96656.0,0.25010666]
[1732983642363,0.001,96657.0,96656.0,0.06394058]
[1732983642659,0.001,96657.0,96656.0,0.25021475]
[1732983643065,0.001,96657.0,96656.0,0.06394058]
[1732983647260,0.3608,96704.0,96656.0,0.31223458]
[1732983647458,0.3608,96704.0,96698.0,0.051684]
[1732983647459,0.0304,96699.0,96698.0,0.051684]
[1732983647664,0.15603389,96699.0,96698.0,0.051684]
[1732983647855,0.00315,96708.0,96707.0,0.051679]
[1732983648264,0.1576349,96708.0,96707.0,0.051679]
[1732983649162,0.1666349,96708.0,96707.0,0.051679]
[1732983649761,0.1576349,96708.0,96707.0,0.051679]
[1732983649967,0.1666349,96708.0,96707.0,0.051679]
[1732983650364,0.1756349,96708.0,96707.0,0.051679]
[1732983653373,0.1576349,96708.0,96707.0,0.001]
[1732983653565,0.1576349,96708.0,96707.0,0.004]
[1732983659080,0.1884349,96708.0,96707.0,0.004]
[1732983659770,0.1884349,96708.0,96707.0,0.003]
[1732983660169,0.1884349,96708.0,96698.0,0.05381626]
[1732983660170,0.051683,96699.0,96698.0,0.05381626]
[1732983660375,0.412483,96699.0,96689.0,0.05381626]
[1732983661778,0.412483,96699.0,96698.0,0.001]
[1732983662371,0.412483,96699.0,96689.0,0.05381626]
[1732983662671,0.412483,96699.0,96697.0,0.0011182]
[1732983662879,0.413483,96699.0,96697.0,0.0011182]
[1732983663074,0.413483,96699.0,96698.0,0.001]
[1732983664777,0.413483,96699.0,96697.0,0.0011182]
[1732983665170,0.412483,96699.0,96697.0,0.0011182]
[1732983665370,0.413483,96699.0,96697.0,0.0011182]
[1732983665575,0.413483,96699.0,96697.0,0.0001182]
[1732983665873,0.413483,96699.0,96698.0,0.001]
[1732983666180,0.413483,96699.0,96697.0,0.0001182]
[1732983666382,0.413483,96699.0,96697.0,0.0011182]
[1732983666881,0.412483,96699.0,96697.0,0.0011182]
[1732983667083,0.0332,96698.0,96697.0,0.0011182]
[1732983667677,0.394,96698.0,96697.0,0.0011182]
[1732983667878,0.394,96698.0,96697.0,0.0001182]
[1732983668576,0.395,96698.0,96697.0,0.0011182]
[1732983668782,0.54954341,96698.0,96697.0,2e-07]
[1732983668985,0.54954341,96698.0,96660.0,0.18627296]
[1732983668986,0.051691,96684.0,96670.0,0.05381626]
[1732983669284,0.412498,96671.0,96670.0,0.05381626]
[1732983669479,0.0517,96667.0,96663.0,0.00056]
[1732983669677,0.0517,96667.0,96662.0,0.0326]
[1732983669878,0.00011746,96666.0,96662.0,0.08439908]
[1732983670083,0.00011746,96666.0,96662.0,0.03269608]
[1732983670283,0.00011746,96666.0,96664.0,0.051702]
[1732983672580,0.00111746,96666.0,96664.0,0.051702]
[1732983672780,0.00211746,96666.0,96664.0,0.051702]
[1732983673583,0.00211746,96666.0,96665.0,0.02069151]
[1732983674688,0.00111746,96666.0,96665.0,0.02069151]
[1732983674893,0.00011746,96666.0,96665.0,0.02069151]
[1732983675095,0.00111746,96666.0,96665.0,0.02069151]
[1732983678908,0.00011746,96666.0,96665.0,0.02069151]
[1732983679109,0.00111746,96666.0,96665.0,0.02069151]
[1732983680899,0.00211746,96666.0,96665.0,0.02369151]
[1732983681399,0.00211746,96666.0,96665.0,0.02069151]
[1732983681606,0.00111746,96666.0,96665.0,0.02369151]
[1732983681999,0.00011746,96666.0,96665.0,0.02369151]
[1732983683104,0.00011746,96666.0,96665.0,0.02069151]
[1732983683296,0.00011746,96666.0,96665.0,0.02369151]
[1732983683910,0.00011746,96666.0,96665.0,0.38449151]
[1732983686310,0.3608,96683.0,96665.0,0.57076447]
[1732983686506,0.3608,96683.0,96673.0,0.10763252]
[1732983686811,0.3608,96683.0,96682.0,0.051692]
[1732983688207,0.3608,96683.0,96675.0,0.3608]
[1732983688208,0.004,96683.0,96675.0,0.3608]
[1732983688402,0.01,96683.0,96682.0,0.051692]
[1732983688605,0.01,96683.0,96682.0,0.36232496]
[1732983688805,0.01,96683.0,96682.0,0.176052]
[1732983689212,0.01,96683.0,96682.0,0.36174352]
[1732983689408,0.01,96683.0,96682.0,0.176052]
[1732983689804,0.3608,96694.0,96693.0,0.051686]
[1732983690808,0.51530602,96694.0,96682.0,0.001]
[1732983691017,0.3608,96683.0,96674.0,0.18572372]
[1732983691209,0.3608,96683.0,96667.0,0.0308]
[1732983691210,0.3608,96683.0,96675.0,0.01248895]
[1732983691406,0.0309,96682.0,96675.0,0.01248895]
[1732983691607,0.082592,96682.0,96670.0,0.05381626]
[1732983691809,0.3608,96674.0,96670.0,0.05381626]
[1732983692015,0.3608,96674.0,96667.0,0.0308]
[1732983692518,0.3608,96674.0,96667.0,0.16356]
[1732983693111,0.3628,96674.0,96667.0,0.16356]
[1732983693319,0.3628,96674.0,96667.0,0.17599692]
[1732983693520,0.3638,96674.0,96672.0,0.051697]
[1732983696018,0.3638,96674.0,96667.0,0.17599692]
[1732983696912,0.3638,96674.0,96669.0,0.051699]
[1732983697718,0.3618,96674.0,96669.0,0.051699]
[1732983697919,0.3638,96674.0,96669.0,0.051699]
[1732983702523,0.3638,96674.0,96670.0,1.5]
[1732983705415,0.3638,96674.0,96669.0,0.051699]
[1732983705619,0.051699,96669.0,96667.0,0.01243692]
[1732983706022,0.051699,96669.0,96662.0,0.1858198]
[1732983706827,0.051699,96669.0,96667.0,0.001]
[1732983707925,0.052699,96669.0,96662.0,0.3195798]
[1732983708117,0.052699,96669.0,96662.0,0.14617565]
[1732983708718,0.052699,96669.0,96665.0,0.051701]
[1732983708719,0.001,96669.0,96665.0,0.051701]
[1732983709030,0.083097,96673.0,96665.0,0.051701]
[1732983709328,0.001,96669.0,96665.0,0.051701]
[1732983709522,0.001,96669.0,96667.0,0.001]
[1732983710330,0.001,96669.0,96665.0,0.051701]
[1732983710923,0.001,96669.0,96667.0,0.001]
[1732983711524,0.001,96669.0,96667.0,1.501]
[1732983713026,0.001,96669.0,96667.0,1.5]
[1732983713622,0.001,96669.0,96667.0,1.501]
[1732983715324,0.001,96669.0,96667.0,0.0527]
[1732983715720,0.0527,96669.0,96667.0,0.001]
[1732983715920,0.0322,96668.0,96667.0,0.001]
[1732983717128,0.0322,96668.0,96662.0,0.01241565]
[1732983717428,0.412502,96664.0,96662.0,0.01241565]
[1732983717828,0.033,96663.0,96662.0,0.01241565]
[1732983718726,0.033,96663.0,96662.0,0.06411865]
[1732983718923,0.3608,96664.0,96662.0,0.06411865]
[1732983719325,0.3608,96664.0,96663.0,0.0318]
[1732983720528,0.3608,96664.0,96663.0,0.0348]
[1732983722225,0.3608,96664.0,96663.0,0.0358]
[1732983723332,0.49416001,96674.0,96663.0,0.0358]
[1732983723333,0.3608,96670.0,96663.0,0.0358]
[1732983723527,0.3608,96670.0,96669.0,0.051699]
[1732983724422,0.3618,96670.0,96669.0,0.051699]
[1732983724833,0.3618,96670.0,96669.0,0.052699]
[1732983730639,0.3618,96670.0,96669.0,0.001]
[1732983731137,0.51599416,96670.0,96669.0,0.001]
[1732983731740,0.051702,96663.0,96662.0,9.608e-05]
[1732983731931,0.185022,96663.0,96662.0,9.608e-05]
[1732983732137,0.33962196,96663.0,96662.0,9.608e-05]
[1732983733736,0.33962196,96663.0,96662.0,0.00109608]
[1732983734141,0.33962196,96663.0,96662.0,0.00309608]
[1732983740544,0.70042196,96663.0,96662.0,0.00309608]
[1732983743349,0.56710196,96663.0,96662.0,0.00309608]
[1732983743550,0.70046196,96663.0,96662.0,0.00309608]
[1732983745951,0.70046196,96663.0,96662.0,0.00197862]
[1732983747042,0.70056021,96663.0,96662.0,0.00197862]
[1732983747352,0.70056021,96663.0,96662.0,0.002]
[1732983747846,1.00056021,96663.0,96662.0,0.002]
[1732983748045,1.1151935,96663.0,96662.0,0.002]
[1732983748646,0.8151935,96663.0,96662.0,0.002]
[1732983752147,0.8151935,96663.0,96640.0,0.10553026]
[1732983752148,0.7634915,96663.0,96637.0,0.0317]
[1732983752344,0.051716,96638.0,96637.0,0.0317]
[1732983753351,0.051716,96638.0,96637.0,0.0327]
[1732983754255,0.052716,96638.0,96637.0,0.0347]
[1732983754653,0.053716,96638.0,96637.0,0.0347]
[1732983755651,0.20970057,96638.0,96637.0,0.0347]
[1732983755853,0.20970057,96638.0,96637.0,0.0327]
[1732983756053,0.20970057,96638.0,96637.0,0.001]
[1732983756654,0.051722,96627.0,96626.0,0.051722]
[1732983757748,0.052722,96627.0,96626.0,0.052722]
[1732983760049,0.053722,96627.0,96626.0,0.052722]
[1732983764660,0.053722,96627.0,96626.0,0.001]
[1732983766958,0.051722,96626.0,96625.0,0.0313]
[1732983769253,0.052722,96626.0,96625.0,0.0313]
[1732983769477,0.053722,96626.0,96625.0,0.0323]
[1732983774265,0.13392,96626.0,96625.0,0.084023]
[1732983775359,0.002,96626.0,96625.0,0.084023]
[1732983776956,0.053722,96626.0,96625.0,0.084023]
[1732983777768,0.053722,96626.0,96625.0,0.001]
[1732983783259,0.183922,96626.0,96625.0,0.001]
[1732983787373,0.181922,96626.0,96624.0,7.908e-05]
[1732983788771,0.15556817,96625.0,96624.0,7.908e-05]
[1732983788970,0.18806817,96625.0,96624.0,7.908e-05]
[1732983789170,0.31826817,96625.0,96624.0,7.908e-05]
[1732983792677,0.18806817,96625.0,96624.0,7.908e-05]
[1732983792873,0.31826817,96625.0,96624.0,7.908e-05]
[1732983793176,0.28576817,96625.0,96624.0,7.908e-05]
[1732983793673,0.28576817,96625.0,96624.0,0.05180208]
[1732983794477,0.33749117,96625.0,96624.0,0.05180208]
[1732983797375,0.15556817,96625.0,96624.0,0.05180208]
[1732983797770,0.1302,96626.0,96625.0,0.051723]
[1732983797978,0.15627163,96625.0,96624.0,7.908e-05]
[1732983798171,0.15627163,96625.0,96624.0,0.05180208]
[1732983798371,0.15627163,96626.0,96625.0,0.051723]
[1732983798566,0.3608,96630.0,96629.0,0.051721]
[1732983799876,0.3618,96630.0,96629.0,0.051721]
[1732983800076,0.3628,96630.0,96629.0,0.051721]
[1732983800976,0.3618,96630.0,96629.0,0.052721]
[1732983801978,0.3608,96630.0,96629.0,0.052721]
[1732983802281,0.3618,96630.0,96629.0,0.052721]
[1732983806082,0.3608,96630.0,96629.0,0.051721]
[1732983806381,0.3608,96630.0,96629.0,0.052721]
[1732983806585,0.1302,96639.0,96629.0,0.001]
[1732983806785,0.3608,96635.0,96629.0,0.001]
[1732983806993,0.3608,96635.0,96634.0,0.051718]
[1732983807286,0.51554758,96635.0,96634.0,0.051718]
[1732983807981,0.15474758,96635.0,96634.0,0.051718]
[1732983808383,0.1559872,96638.0,96637.0,0.051716]
[1732983808574,0.004,96639.0,96637.0,0.051716]
[1732983808774,0.15583472,96638.0,96637.0,0.051716]
[1732983809479,0.15883472,96638.0,96637.0,0.051716]
[1732983809887,0.003,96638.0,96637.0,0.051716]
[1732983810186,0.1584577,96638.0,96637.0,0.052716]
[1732983810381,0.1554577,96638.0,96637.0,0.052716]
[1732983810683,0.1542765,96646.0,96637.0,0.052716]
[1732983810892,0.1542765,96646.0,96645.0,0.051712]
[1732983811182,0.1302,96648.0,96645.0,0.051712]
[1732983811386,0.1542765,96646.0,96645.0,0.051712]
[1732983812081,0.1562765,96646.0,96645.0,0.051712]
[1732983812683,0.1572765,96646.0,96645.0,0.051712]
[1732983812987,0.1592765,96646.0,96645.0,0.051712]
[1732983813483,0.1622765,96646.0,96645.0,0.051712]
[1732983814081,0.2139875,96646.0,96645.0,0.051712]
[1732983815183,0.1622765,96646.0,96645.0,0.051712]
[1732983817383,0.1592765,96646.0,96645.0,0.051712]
[1732983819078,0.1562765,96646.0,96645.0,0.051712]
[1732983819281,0.1582765,96646.0,96645.0,0.051712]
[1732983841704,0.004,96646.0,96645.0,0.051712]
[1732983841910,0.004,96646.0,96645.0,0.23743572]
[1732983842108,0.3608,96661.0,96660.0,0.051704]
[1732983842609,0.51590027,96661.0,96660.0,0.051704]
[1732983843505,0.52490027,96661.0,96660.0,0.051704]
[1732983843706,0.52990027,96661.0,96660.0,0.051704]
[1732983845127,0.52690027,96661.0,96660.0,0.051704]
[1732983846620,0.51590027,96661.0,96660.0,0.051704]
[1732983846829,0.52290027,96661.0,96660.0,0.051704]
[1732983847126,0.52290027,96661.0,96660.0,0.06403502]
[1732983847626,0.52190027,96661.0,96660.0,0.06403502]
[1732983848032,0.52090027,96661.0,96660.0,0.06403502]
[1732983848327,0.15810027,96661.0,96660.0,0.06403502]
[1732983848535,0.16010027,96661.0,96660.0,0.06403502]
[1732983849927,0.15810027,96661.0,96660.0,0.06403502]
[1732983850135,0.16010027,96661.0,96660.0,0.06403502]
[1732983850322,0.15710027,96661.0,96660.0,0.06403502]
[1732983850825,0.15610027,96661.0,96660.0,0.06403502]
[1732983853030,0.15510027,96661.0,96660.0,0.06403502]
[1732983853331,0.15610027,96661.0,96660.0,0.06503502]
[1732983853924,0.15510027,96661.0,96660.0,0.06603502]
[1732983862344,0.4942,96679.0,96662.0,0.051703]
[1732983862550,0.49356,96679.0,96662.0,0.051703]
[1732983863043,0.0301,96686.0,96684.0,0.051691]
[1732983863437,0.1871609,96685.0,96684.0,0.051691]